[Event "Titled Tuesday Blitz March 29 Late 2022"]
[White "Martinez Reyes, Pedro Ramon"]
[Black "Prohorov, Olexandr"]
[WhiteFideId "3901807"]
[BlackFideId "14105578"]
[WhiteElo "2410"]
[BlackElo "1993"]
[Result "0-1"]
[Round "11"]
[TimeControl "180+1"]
[Date "2022.03.29"]
[WhiteClock "0:00:10"]
[BlackClock "0:00:08"]

1. g4 {[%clk 0:03:00]}  h5 {[%clk 0:02:54]} 2. g5 {[%clk 0:03:00]}  g6 {[%clk 0:02:51]} 3. h4 {[%clk 0:02:59]}  Bg7 {[%clk 0:02:48]} 4. Bg2 {[%clk 0:03:00]}  e5 {[%clk 0:02:33]} 5. c4 {[%clk 0:02:59]}  d6 {[%clk 0:02:28]} 6. Nc3 {[%clk 0:02:59]}  Ne7 {[%clk 0:02:24]} 7. d3 {[%clk 0:02:59]}  O-O {[%clk 0:02:20]} 8. Qb3 {[%clk 0:02:57]}  Nd7 {[%clk 0:02:16]} 9. Bd2 {[%clk 0:02:56]}  Nc5 {[%clk 0:02:15]} 10. Qc2 {[%clk 0:02:57]}  a5 {[%clk 0:02:11]} 11. e3 {[%clk 0:02:37]}  Bf5 {[%clk 0:02:04]} 12. Ne4 {[%clk 0:02:30]}  Nc6 {[%clk 0:01:47]} 13. a3 {[%clk 0:02:28]}  Nxe4 {[%clk 0:01:40]} 14. dxe4 {[%clk 0:02:23]}  Be6 {[%clk 0:01:40]} 15. Ne2 {[%clk 0:02:20]}  a4 {[%clk 0:01:34]} 16. Qd3 {[%clk 0:02:15]}  Qd7 {[%clk 0:01:30]} 17. Nc3 {[%clk 0:02:13]}  Na5 {[%clk 0:01:17]} 18. Nd5 {[%clk 0:02:10]}  Nb3 {[%clk 0:01:18]} 19. Rd1 {[%clk 0:02:07]}  Rae8 {[%clk 0:01:08]} 20. Bb4 {[%clk 0:02:03]}  Bxd5 {[%clk 0:00:59]} 21. cxd5 {[%clk 0:01:59]}  f6 {[%clk 0:00:59]} 22. Bh3 {[%clk 0:01:46]}  Qd8 {[%clk 0:00:56]} 23. Rg1 {[%clk 0:01:43]}  fxg5 {[%clk 0:00:53]} 24. Rxg5 {[%clk 0:01:42]}  Kh7 {[%clk 0:00:46]} 25. Qf1 {[%clk 0:01:31]}  Bh6 {[%clk 0:00:46]} 26. Rg3 {[%clk 0:01:32]}  Qxh4 {[%clk 0:00:42]} 27. Qg2 {[%clk 0:01:32]}  Rf6 {[%clk 0:00:42]} 28. Ke2 {[%clk 0:01:10]}  Ref8 {[%clk 0:00:42]} 29. f3 {[%clk 0:01:11]}  R6f7 {[%clk 0:00:23]} 30. Be6 {[%clk 0:01:08]}  Rg7 {[%clk 0:00:17]} 31. Rh1 {[%clk 0:01:08]}  Qf6 {[%clk 0:00:16]} 32. Kd1 {[%clk 0:00:53]}  c5 {[%clk 0:00:13]} 33. Be1 {[%clk 0:00:45]}  Bxe3 {[%clk 0:00:12]} 34. Rgh3 {[%clk 0:00:43]}  Bh6 {[%clk 0:00:12]} 35. Bg3 {[%clk 0:00:37]}  b5 {[%clk 0:00:11]} 36. Bh2 {[%clk 0:00:36]}  b4 {[%clk 0:00:11]} 37. axb4 {[%clk 0:00:33]}  cxb4 {[%clk 0:00:12]} 38. Kc2 {[%clk 0:00:34]}  Rc7+ {[%clk 0:00:12]} 39. Kb1 {[%clk 0:00:34]}  a3 {[%clk 0:00:12]} 40. Bf5 {[%clk 0:00:31]}  gxf5 {[%clk 0:00:10]} 41. Rxh5 {[%clk 0:00:31]}  axb2 {[%clk 0:00:06]} 42. Kxb2 {[%clk 0:00:23]}  Nd4 {[%clk 0:00:04]} 43. Bg1 {[%clk 0:00:14]}  Rc2+ {[%clk 0:00:04]} 44. Qxc2 {[%clk 0:00:13]}  Nxc2 {[%clk 0:00:04]} 45. Kxc2 {[%clk 0:00:13]}  Rc8+ {[%clk 0:00:04]} 46. Kb3 {[%clk 0:00:13]}  fxe4 {[%clk 0:00:05]} 47. Be3 {[%clk 0:00:12]}  Rc3+ {[%clk 0:00:02]} 48. Kxb4 {[%clk 0:00:12]}  Rxe3 {[%clk 0:00:03]} 49. fxe4 {[%clk 0:00:13]}  Rxe4+ {[%clk 0:00:02]} 50. Kb5 {[%clk 0:00:14]}  Qg6 {[%clk 0:00:01]} 51. Kc6 {[%clk 0:00:15]}  Rd4 {[%clk 0:00:01]} 52. R5h3 {[%clk 0:00:14]}  e4 {[%clk 0:00:02]} 53. Rb1 {[%clk 0:00:13]}  Qf5 {[%clk 0:00:02]} 54. Rb7+ {[%clk 0:00:14]}  Kg8 {[%clk 0:00:02]} 55. Rg3+ {[%clk 0:00:15]}  Kf8 {[%clk 0:00:02]} 56. Rb8+ {[%clk 0:00:15]}  Kf7 {[%clk 0:00:03]} 57. Rb7+ {[%clk 0:00:16]}  Kf6 {[%clk 0:00:04]} 58. Rd7 {[%clk 0:00:15]}  Qxd5+ {[%clk 0:00:05]} 59. Kc7 {[%clk 0:00:15]}  Qc5+ {[%clk 0:00:05]} 60. Kd8 {[%clk 0:00:15]}  Rd5 {[%clk 0:00:05]} 61. Rg8 {[%clk 0:00:16]}  Qb6+ {[%clk 0:00:06]} 62. Ke8 {[%clk 0:00:16]}  Qb8+ {[%clk 0:00:06]} 63. Rd8 {[%clk 0:00:16]}  Re5+ {[%clk 0:00:07]} 64. Kd7 {[%clk 0:00:16]}  Qb7+ {[%clk 0:00:07]} 65. Kxd6 {[%clk 0:00:17]}  Re6+ {[%clk 0:00:07]} 66. Kc5 {[%clk 0:00:17]}  Qc7+ {[%clk 0:00:07]} 67. Kb5 {[%clk 0:00:17]}  Be3 {[%clk 0:00:07]} 68. Rgf8+ {[%clk 0:00:15]}  Ke5 {[%clk 0:00:08]} 69. Rd5+ {[%clk 0:00:10]}  Kxd5 {[%clk 0:00:08]} 70. Rf5+ {[%clk 0:00:10]}  Re5 {[%clk 0:00:08]} 71. Ka6 {[%clk 0:00:10]}  Qb6# {[%clk 0:00:08]} 0-1


[Site "https://www.chess.com"]

[Event "Titled Tuesday Blitz March 29 Late 2022"]
[White "Petesch, Gabriel"]
[Black "Melikhov, Evgeny V."]
[WhiteFideId "2032465"]
[BlackFideId "4122046"]
[WhiteElo "2374"]
[BlackElo "1945"]
[Result "1-0"]
[Round "11"]
[TimeControl "180+1"]
[Date "2022.03.30"]
[WhiteClock "0:00:13"]
[BlackClock "0:00:25"]

1. Nf3 {[%clk 0:03:00]}  f5 {[%clk 0:02:58]} 2. d3 {[%clk 0:02:59]}  Nf6 {[%clk 0:02:58]} 3. Nc3 {[%clk 0:02:46]}  d6 {[%clk 0:02:56]} 4. e4 {[%clk 0:02:40]}  e5 {[%clk 0:02:56]} 5. g3 {[%clk 0:02:34]}  Nc6 {[%clk 0:02:50]} 6. Bg2 {[%clk 0:02:34]}  Be7 {[%clk 0:02:50]} 7. O-O {[%clk 0:02:30]}  O-O {[%clk 0:02:49]} 8. d4 {[%clk 0:02:28]}  fxe4 {[%clk 0:02:43]} 9. Ng5 {[%clk 0:02:19]}  exd4 {[%clk 0:02:43]} 10. Ncxe4 {[%clk 0:02:10]}  Nxe4 {[%clk 0:02:31]} 11. Nxe4 {[%clk 0:02:05]}  Bf5 {[%clk 0:02:21]} 12. Re1 {[%clk 0:02:03]}  Qd7 {[%clk 0:02:20]} 13. c3 {[%clk 0:01:57]}  dxc3 {[%clk 0:02:07]} 14. Nxc3 {[%clk 0:01:52]}  Bh3 {[%clk 0:01:59]} 15. Nd5 {[%clk 0:01:26]}  Bxg2 {[%clk 0:01:56]} 16. Kxg2 {[%clk 0:01:27]}  Rae8 {[%clk 0:01:46]} 17. Qb3 {[%clk 0:01:23]}  Kh8 {[%clk 0:01:38]} 18. Qxb7 {[%clk 0:01:00]}  Qf5 {[%clk 0:01:28]} 19. Nf4 {[%clk 0:00:45]}  Ne5 {[%clk 0:01:26]} 20. Qe4 {[%clk 0:00:38]}  Qxe4+ {[%clk 0:01:10]} 21. Rxe4 {[%clk 0:00:36]}  Bf6 {[%clk 0:01:09]} 22. Bd2 {[%clk 0:00:31]}  c6 {[%clk 0:01:00]} 23. Rae1 {[%clk 0:00:30]}  Rb8 {[%clk 0:00:41]} 24. Bc3 {[%clk 0:00:25]}  Rb5 {[%clk 0:00:33]} 25. Ne6 {[%clk 0:00:17]}  Rc8 {[%clk 0:00:29]} 26. Nd4 {[%clk 0:00:16]}  Rd5 {[%clk 0:00:28]} 27. f4 {[%clk 0:00:12]}  h6 {[%clk 0:00:20]} 28. fxe5 {[%clk 0:00:10]}  dxe5 {[%clk 0:00:20]} 29. Nf3 {[%clk 0:00:10]}  Rd3 {[%clk 0:00:20]} 30. Nxe5 {[%clk 0:00:08]}  Bxe5 {[%clk 0:00:19]} 31. Rxe5 {[%clk 0:00:08]}  Rc7 {[%clk 0:00:19]} 32. Re7 {[%clk 0:00:08]}  Rxe7 {[%clk 0:00:18]} 33. Rxe7 {[%clk 0:00:09]}  Kh7 {[%clk 0:00:18]} 34. Rxg7+ {[%clk 0:00:09]}  Kh8 {[%clk 0:00:18]} 35. Rxa7+ {[%clk 0:00:07]}  Kg8 {[%clk 0:00:17]} 36. a4 {[%clk 0:00:07]}  Kf8 {[%clk 0:00:15]} 37. a5 {[%clk 0:00:07]}  Rd1 {[%clk 0:00:15]} 38. a6 {[%clk 0:00:07]}  Ra1 {[%clk 0:00:16]} 39. Ra8+ {[%clk 0:00:06]}  Ke7 {[%clk 0:00:16]} 40. a7 {[%clk 0:00:07]}  Kd6 {[%clk 0:00:15]} 41. Rd8+ {[%clk 0:00:06]}  Kc5 {[%clk 0:00:16]} 42. a8=Q {[%clk 0:00:06]}  Rxa8 {[%clk 0:00:16]} 43. Rxa8 {[%clk 0:00:06]}  Kc4 {[%clk 0:00:17]} 44. Rh8 {[%clk 0:00:07]}  c5 {[%clk 0:00:17]} 45. Rxh6 {[%clk 0:00:07]}  Kb3 {[%clk 0:00:18]} 46. Rh5 {[%clk 0:00:07]}  c4 {[%clk 0:00:19]} 47. Rc5 {[%clk 0:00:08]}  Kc2 {[%clk 0:00:20]} 48. g4 {[%clk 0:00:08]}  Kd3 {[%clk 0:00:21]} 49. g5 {[%clk 0:00:09]}  Ke4 {[%clk 0:00:20]} 50. g6 {[%clk 0:00:10]}  Kd3 {[%clk 0:00:20]} 51. g7 {[%clk 0:00:11]}  Kc2 {[%clk 0:00:21]} 52. g8=Q {[%clk 0:00:12]}  Kb3 {[%clk 0:00:22]} 53. Qxc4+ {[%clk 0:00:12]}  Kc2 {[%clk 0:00:23]} 54. Bd4+ {[%clk 0:00:12]}  Kb1 {[%clk 0:00:24]} 55. Qc1+ {[%clk 0:00:12]}  Ka2 {[%clk 0:00:24]} 56. Ra5+ {[%clk 0:00:13]}  Kb3 {[%clk 0:00:25]} 57. Qc3# {[%clk 0:00:13]} 1-0


[Site "https://www.chess.com"]

[Event "Titled Tuesday Blitz March 29 Late 2022"]
[White "Petrova, Irina"]
[Black "Przybylski, Wojciech"]
[WhiteFideId "14124122"]
[BlackFideId "1117599"]
[WhiteElo "1993"]
[BlackElo "2133"]
[Result "0-1"]
[Round "11"]
[TimeControl "180+1"]
[Date "2022.03.30"]
[WhiteClock "0:00:27"]
[BlackClock "0:01:54"]

1. e4 {[%clk 0:03:00]}  c5 {[%clk 0:02:58]} 2. Nf3 {[%clk 0:03:01]}  d6 {[%clk 0:02:58]} 3. Bb5+ {[%clk 0:03:00]}  Nd7 {[%clk 0:02:55]} 4. O-O {[%clk 0:03:00]}  e5 {[%clk 0:02:55]} 5. c3 {[%clk 0:02:58]}  a6 {[%clk 0:02:54]} 6. Bxd7+ {[%clk 0:02:49]}  Bxd7 {[%clk 0:02:53]} 7. d4 {[%clk 0:02:49]}  f6 {[%clk 0:02:50]} 8. dxe5 {[%clk 0:02:40]}  dxe5 {[%clk 0:02:49]} 9. Nxe5 {[%clk 0:02:37]}  Be6 {[%clk 0:02:45]} 10. Nf3 {[%clk 0:02:12]}  Qxd1 {[%clk 0:02:43]} 11. Rxd1 {[%clk 0:02:13]}  Ne7 {[%clk 0:02:41]} 12. Bf4 {[%clk 0:02:11]}  Nc6 {[%clk 0:02:37]} 13. Nbd2 {[%clk 0:02:09]}  Rd8 {[%clk 0:02:35]} 14. Nf1 {[%clk 0:02:08]}  Rxd1 {[%clk 0:02:29]} 15. Rxd1 {[%clk 0:02:09]}  Bxa2 {[%clk 0:02:29]} 16. Ne3 {[%clk 0:02:05]}  Bb3 {[%clk 0:02:28]} 17. Rd2 {[%clk 0:02:03]}  g5 {[%clk 0:02:25]} 18. Bg3 {[%clk 0:02:02]}  h5 {[%clk 0:02:18]} 19. Nd5 {[%clk 0:01:49]}  Kf7 {[%clk 0:02:17]} 20. Bc7 {[%clk 0:01:28]}  Bh6 {[%clk 0:02:15]} 21. Re2 {[%clk 0:01:08]}  Re8 {[%clk 0:02:09]} 22. Re1 {[%clk 0:01:01]}  g4 {[%clk 0:02:07]} 23. Nh4 {[%clk 0:00:36]}  Bxd5 {[%clk 0:02:05]} 24. Nf5 {[%clk 0:00:35]}  Bf8 {[%clk 0:02:03]} 25. Rd1 {[%clk 0:00:31]}  Bxe4 {[%clk 0:01:56]} 26. Ng3 {[%clk 0:00:28]}  Bc2 {[%clk 0:01:54]} 27. Rd7+ {[%clk 0:00:27]}  Re7 {[%clk 0:01:54]} 0-1


[Site "https://www.chess.com"]

[Event "Titled Tuesday Blitz March 29 Late 2022"]
[White "Piliczewski, Bogusz"]
[Black "Curtis, John"]
[WhiteFideId "1104144"]
[BlackFideId "3200256"]
[WhiteElo "1896"]
[BlackElo "2203"]
[Result "0-1"]
[Round "11"]
[TimeControl "180+1"]
[Date "2022.03.30"]
[WhiteClock "0:00:01"]
[BlackClock "0:01:07"]

1. d4 {[%clk 0:02:54]}  Nf6 {[%clk 0:02:57]} 2. Nf3 {[%clk 0:02:55]}  g6 {[%clk 0:02:53]} 3. Bf4 {[%clk 0:02:54]}  d6 {[%clk 0:02:51]} 4. h3 {[%clk 0:02:54]}  Bg7 {[%clk 0:02:49]} 5. e3 {[%clk 0:02:53]}  O-O {[%clk 0:02:48]} 6. Be2 {[%clk 0:02:53]}  b6 {[%clk 0:02:47]} 7. O-O {[%clk 0:02:53]}  Bb7 {[%clk 0:02:47]} 8. Nbd2 {[%clk 0:02:52]}  Re8 {[%clk 0:02:44]} 9. c4 {[%clk 0:02:51]}  Nbd7 {[%clk 0:02:42]} 10. b4 {[%clk 0:02:50]}  Ne4 {[%clk 0:02:32]} 11. Nxe4 {[%clk 0:02:44]}  Bxe4 {[%clk 0:02:31]} 12. Bh2 {[%clk 0:02:39]}  e5 {[%clk 0:02:28]} 13. d5 {[%clk 0:02:34]}  Bxf3 {[%clk 0:02:26]} 14. gxf3 {[%clk 0:02:31]}  a5 {[%clk 0:02:12]} 15. e4 {[%clk 0:02:17]}  axb4 {[%clk 0:01:37]} 16. Qb3 {[%clk 0:00:11]}  Nc5 {[%clk 0:01:29]} 17. Qxb4 {[%clk 0:00:11]}  Ra4 {[%clk 0:01:26]} 18. Qb2 {[%clk 0:00:11]}  Qa8 {[%clk 0:01:19]} 19. a3 {[%clk 0:00:10]}  Bh6 {[%clk 0:01:16]} 20. Rfd1 {[%clk 0:00:09]}  Qa5 {[%clk 0:01:14]} 21. Bg3 {[%clk 0:00:07]}  Ra8 {[%clk 0:01:12]} 22. Ra2 {[%clk 0:00:03]}  Rxa3 {[%clk 0:01:11]} 23. Rxa3 {[%clk 0:00:03]}  Qxa3 {[%clk 0:01:09]} 24. Qxa3 {[%clk 0:00:03]}  Rxa3 {[%clk 0:01:08]} 25. Rb1 {[%clk 0:00:02]}  Ra2 {[%clk 0:01:08]} 26. Bf1 {[%clk 0:00:01]}  Ra3 {[%clk 0:01:07]} 0-1


[Site "https://www.chess.com"]

[Event "Titled Tuesday Blitz March 29 Late 2022"]
[White "Ricaurte Lopez, Juan Carlos"]
[Black "Tsukerman, Julia"]
[WhiteFideId "3600327"]
[BlackFideId "2621649"]
[WhiteElo "2209"]
[BlackElo "2129"]
[Result "0-1"]
[Round "11"]
[TimeControl "180+1"]
[Date "2022.03.30"]
[WhiteClock "0:00:29"]
[BlackClock "0:01:01"]

1. e4 {[%clk 0:03:00]}  c5 {[%clk 0:02:53]} 2. Nf3 {[%clk 0:02:56]}  d6 {[%clk 0:02:50]} 3. d4 {[%clk 0:02:55]}  cxd4 {[%clk 0:02:50]} 4. Nxd4 {[%clk 0:02:56]}  Nf6 {[%clk 0:02:51]} 5. Nc3 {[%clk 0:02:54]}  a6 {[%clk 0:02:51]} 6. f4 {[%clk 0:02:52]}  e6 {[%clk 0:02:44]} 7. Bd3 {[%clk 0:02:47]}  Be7 {[%clk 0:02:41]} 8. O-O {[%clk 0:02:46]}  Qc7 {[%clk 0:02:39]} 9. Kh1 {[%clk 0:02:45]}  Nbd7 {[%clk 0:02:37]} 10. Qe2 {[%clk 0:02:40]}  O-O {[%clk 0:02:33]} 11. Nf3 {[%clk 0:02:38]}  Nc5 {[%clk 0:02:30]} 12. e5 {[%clk 0:02:38]}  dxe5 {[%clk 0:02:25]} 13. fxe5 {[%clk 0:02:36]}  Nxd3 {[%clk 0:02:13]} 14. exf6 {[%clk 0:02:29]}  Nxc1 {[%clk 0:02:12]} 15. Raxc1 {[%clk 0:02:17]}  Bxf6 {[%clk 0:02:11]} 16. Rcd1 {[%clk 0:02:06]}  Bxc3 {[%clk 0:02:07]} 17. bxc3 {[%clk 0:02:05]}  Qxc3 {[%clk 0:02:08]} 18. Ne5 {[%clk 0:02:03]}  b5 {[%clk 0:02:04]} 19. Rd3 {[%clk 0:01:54]}  Qc7 {[%clk 0:01:59]} 20. Qf3 {[%clk 0:01:42]}  Bb7 {[%clk 0:01:57]} 21. Qg3 {[%clk 0:01:36]}  Rad8 {[%clk 0:01:45]} 22. Rc3 {[%clk 0:01:23]}  Qb8 {[%clk 0:01:37]} 23. Qe3 {[%clk 0:01:01]}  Rd5 {[%clk 0:01:27]} 24. Nd3 {[%clk 0:00:46]}  Qd6 {[%clk 0:01:15]} 25. Qa7 {[%clk 0:00:33]}  Qb8 {[%clk 0:01:04]} 26. Qb6 {[%clk 0:00:29]}  Rg5 {[%clk 0:01:01]} 0-1


[Site "https://www.chess.com"]

[Event "Titled Tuesday Blitz March 29 Late 2022"]
[White "Ronka, Erik"]
[Black "Shton, Roman"]
[WhiteFideId "505080"]
[BlackFideId "14137461"]
[WhiteElo "2264"]
[BlackElo "2013"]
[Result "0-1"]
[Round "11"]
[TimeControl "180+1"]
[Date "2022.03.30"]
[WhiteClock "0:00:03"]
[BlackClock "0:00:23"]

1. e4 {[%clk 0:03:00]}  Nf6 {[%clk 0:02:56]} 2. Nc3 {[%clk 0:02:58]}  d5 {[%clk 0:02:56]} 3. e5 {[%clk 0:02:58]}  Nfd7 {[%clk 0:02:56]} 4. e6 {[%clk 0:02:52]}  fxe6 {[%clk 0:02:57]} 5. d4 {[%clk 0:02:53]}  c5 {[%clk 0:02:57]} 6. Nf3 {[%clk 0:02:51]}  Nc6 {[%clk 0:02:57]} 7. Bb5 {[%clk 0:02:40]}  g6 {[%clk 0:02:49]} 8. h4 {[%clk 0:02:22]}  Nf6 {[%clk 0:02:46]} 9. Ne5 {[%clk 0:02:19]}  Qb6 {[%clk 0:02:39]} 10. dxc5 {[%clk 0:02:06]}  Qxc5 {[%clk 0:02:37]} 11. h5 {[%clk 0:02:00]}  Ne4 {[%clk 0:02:14]} 12. Nxe4 {[%clk 0:01:40]}  dxe4 {[%clk 0:02:12]} 13. Nxc6 {[%clk 0:01:09]}  bxc6 {[%clk 0:01:49]} 14. Ba4 {[%clk 0:01:03]}  Bg7 {[%clk 0:01:45]} 15. hxg6 {[%clk 0:00:58]}  hxg6 {[%clk 0:01:46]} 16. Rxh8+ {[%clk 0:00:57]}  Bxh8 {[%clk 0:01:47]} 17. Be3 {[%clk 0:00:53]}  Qb4+ {[%clk 0:01:44]} 18. c3 {[%clk 0:00:53]}  Qxb2 {[%clk 0:01:40]} 19. Bxc6+ {[%clk 0:00:53]}  Kf7 {[%clk 0:01:39]} 20. Rc1 {[%clk 0:00:26]}  Bxc3+ {[%clk 0:01:34]} 21. Kf1 {[%clk 0:00:24]}  Ba6+ {[%clk 0:01:33]} 22. Kg1 {[%clk 0:00:25]}  Rc8 {[%clk 0:01:27]} 23. Bd7 {[%clk 0:00:19]}  Rc7 {[%clk 0:01:20]} 24. Qa4 {[%clk 0:00:14]}  Bc4 {[%clk 0:01:06]} 25. Bb5 {[%clk 0:00:07]}  Bd5 {[%clk 0:00:57]} 26. Bf1 {[%clk 0:00:04]}  Qxa2 {[%clk 0:00:54]} 27. Qd1 {[%clk 0:00:03]}  a5 {[%clk 0:00:47]} 28. Qg4 {[%clk 0:00:04]}  a4 {[%clk 0:00:45]} 29. Bf4 {[%clk 0:00:03]}  Rc6 {[%clk 0:00:41]} 30. Qh4 {[%clk 0:00:02]}  Bg7 {[%clk 0:00:31]} 31. Bg5 {[%clk 0:00:02]}  Rxc1 {[%clk 0:00:30]} 32. Bxc1 {[%clk 0:00:03]}  Qb1 {[%clk 0:00:27]} 33. Qf4+ {[%clk 0:00:02]}  Bf6 {[%clk 0:00:27]} 34. Kh2 {[%clk 0:00:03]}  a3 {[%clk 0:00:25]} 35. Qh6 {[%clk 0:00:02]}  a2 {[%clk 0:00:23]} 36. Qh7+ {[%clk 0:00:03]}  Bg7 {[%clk 0:00:23]} 0-1


[Site "https://www.chess.com"]

[Event "Titled Tuesday Blitz March 29 Late 2022"]
[White "Rosen, Eric"]
[Black "Karttunen, Mika"]
[WhiteFideId "2032562"]
[BlackFideId "502081"]
[WhiteElo "2362"]
[BlackElo "2343"]
[Result "0-1"]
[Round "11"]
[TimeControl "180+1"]
[Date "2022.03.29"]
[WhiteClock "0:00:04"]
[BlackClock "0:00:15"]

1. d4 {[%clk 0:03:00]}  Nf6 {[%clk 0:02:59]} 2. Bf4 {[%clk 0:03:00]}  d6 {[%clk 0:02:59]} 3. Nc3 {[%clk 0:03:00]}  Nbd7 {[%clk 0:02:52]} 4. Nf3 {[%clk 0:02:58]}  e6 {[%clk 0:02:30]} 5. e4 {[%clk 0:02:55]}  a6 {[%clk 0:02:29]} 6. a4 {[%clk 0:02:55]}  b6 {[%clk 0:02:29]} 7. Bd3 {[%clk 0:02:52]}  Bb7 {[%clk 0:02:29]} 8. Qe2 {[%clk 0:02:51]}  c5 {[%clk 0:02:24]} 9. Bg3 {[%clk 0:02:09]}  Nh5 {[%clk 0:01:59]} 10. Rd1 {[%clk 0:01:59]}  Nxg3 {[%clk 0:01:55]} 11. hxg3 {[%clk 0:02:00]}  cxd4 {[%clk 0:01:55]} 12. Nxd4 {[%clk 0:02:00]}  Ne5 {[%clk 0:01:51]} 13. f4 {[%clk 0:01:37]}  Nxd3+ {[%clk 0:01:50]} 14. Rxd3 {[%clk 0:01:38]}  Qc7 {[%clk 0:01:50]} 15. f5 {[%clk 0:01:27]}  e5 {[%clk 0:01:06]} 16. Nf3 {[%clk 0:01:26]}  b5 {[%clk 0:00:58]} 17. g4 {[%clk 0:01:15]}  Qa5 {[%clk 0:00:44]} 18. O-O {[%clk 0:00:59]}  Be7 {[%clk 0:00:32]} 19. Ra1 {[%clk 0:00:51]}  b4 {[%clk 0:00:31]} 20. Nd5 {[%clk 0:00:50]}  Qc5+ {[%clk 0:00:30]} 21. Kh2 {[%clk 0:00:49]}  Bxd5 {[%clk 0:00:25]} 22. Rxd5 {[%clk 0:00:49]}  Qc6 {[%clk 0:00:24]} 23. g5 {[%clk 0:00:28]}  Rc8 {[%clk 0:00:24]} 24. Rd2 {[%clk 0:00:28]}  h6 {[%clk 0:00:23]} 25. g6 {[%clk 0:00:28]}  fxg6 {[%clk 0:00:23]} 26. fxg6 {[%clk 0:00:29]}  O-O {[%clk 0:00:23]} 27. Rad1 {[%clk 0:00:28]}  Rf6 {[%clk 0:00:22]} 28. Qd3 {[%clk 0:00:21]}  Rxg6 {[%clk 0:00:21]} 29. Qb3+ {[%clk 0:00:21]}  Kh7 {[%clk 0:00:21]} 30. Qxb4 {[%clk 0:00:16]}  Rg4 {[%clk 0:00:21]} 31. Nxe5 {[%clk 0:00:08]}  dxe5 {[%clk 0:00:16]} 32. Qxe7 {[%clk 0:00:08]}  Qxe4 {[%clk 0:00:17]} 33. Qa7 {[%clk 0:00:03]}  Rxc2 {[%clk 0:00:16]} 34. Rxc2 {[%clk 0:00:02]}  Qxc2 {[%clk 0:00:16]} 35. Rg1 {[%clk 0:00:02]}  Qxa4 {[%clk 0:00:15]} 36. Qe3 {[%clk 0:00:02]}  Qf4+ {[%clk 0:00:15]} 37. Kh3 {[%clk 0:00:02]}  Qxe3+ {[%clk 0:00:15]} 38. Kxg4 {[%clk 0:00:01]}  Qxg1 {[%clk 0:00:15]} 39. Kh3 {[%clk 0:00:02]}  Qe3+ {[%clk 0:00:15]} 40. g3 {[%clk 0:00:03]}  Qf3 {[%clk 0:00:15]} 41. b4 {[%clk 0:00:03]}  Qh1+ {[%clk 0:00:14]} 42. Kg4 {[%clk 0:00:03]}  Kg6 {[%clk 0:00:15]} 43. b5 {[%clk 0:00:04]}  h5# {[%clk 0:00:15]} 0-1


[Site "https://www.chess.com"]

[Event "Titled Tuesday Blitz March 29 Late 2022"]
[White "Sanchez Alvares, Kelvin Antonio"]
[Black "Terletsky, Oleg"]
[WhiteFideId "3906680"]
[BlackFideId "14116774"]
[WhiteElo "2193"]
[BlackElo "2064"]
[Result "0-1"]
[Round "11"]
[TimeControl "180+1"]
[Date "2022.03.30"]
[WhiteClock "0:00:55"]
[BlackClock "0:01:00"]

1. e4 {[%clk 0:03:00]}  e5 {[%clk 0:02:59]} 2. Nf3 {[%clk 0:03:00]}  Nc6 {[%clk 0:02:58]} 3. Bb5 {[%clk 0:02:57]}  a6 {[%clk 0:02:58]} 4. Ba4 {[%clk 0:02:53]}  Nf6 {[%clk 0:02:57]} 5. O-O {[%clk 0:02:52]}  Be7 {[%clk 0:02:57]} 6. Re1 {[%clk 0:02:51]}  b5 {[%clk 0:02:57]} 7. Bb3 {[%clk 0:02:52]}  d6 {[%clk 0:02:58]} 8. a4 {[%clk 0:02:52]}  Bg4 {[%clk 0:02:55]} 9. axb5 {[%clk 0:02:51]}  Nd4 {[%clk 0:02:53]} 10. bxa6 {[%clk 0:02:45]}  Qc8 {[%clk 0:02:51]} 11. c3 {[%clk 0:02:24]}  Nxf3+ {[%clk 0:02:27]} 12. gxf3 {[%clk 0:02:23]}  Bh3 {[%clk 0:02:28]} 13. Bc4 {[%clk 0:02:20]}  O-O {[%clk 0:02:16]} 14. d4 {[%clk 0:02:12]}  Nh5 {[%clk 0:02:07]} 15. Be3 {[%clk 0:02:01]}  Qd8 {[%clk 0:02:00]} 16. Nd2 {[%clk 0:02:00]}  Bg5 {[%clk 0:01:58]} 17. Kh1 {[%clk 0:01:59]}  Bf4 {[%clk 0:01:54]} 18. Bxf4 {[%clk 0:01:39]}  Nxf4 {[%clk 0:01:49]} 19. Rg1 {[%clk 0:01:35]}  Qh4 {[%clk 0:01:36]} 20. Rg3 {[%clk 0:01:33]}  Kh8 {[%clk 0:01:33]} 21. Bf1 {[%clk 0:01:16]}  f5 {[%clk 0:01:26]} 22. exf5 {[%clk 0:01:11]}  Rxf5 {[%clk 0:01:24]} 23. Ne4 {[%clk 0:01:10]}  Rh5 {[%clk 0:01:15]} 24. Kg1 {[%clk 0:00:55]}  Bf5 {[%clk 0:01:00]} 0-1


[Site "https://www.chess.com"]

[Event "Titled Tuesday Blitz March 29 Late 2022"]
[White "Sarkar, Justin"]
[Black "Brizzi, Milagros Tatiana"]
[WhiteFideId "2010011"]
[BlackFideId "128350"]
[WhiteElo "2038"]
[BlackElo "1844"]
[Result "1-0"]
[Round "11"]
[TimeControl "180+1"]
[Date "2022.03.30"]
[WhiteClock "0:00:07"]
[BlackClock "0:00:13"]

1. e4 {[%clk 0:03:00]}  c6 {[%clk 0:02:54]} 2. d4 {[%clk 0:02:51]}  d5 {[%clk 0:02:55]} 3. e5 {[%clk 0:02:50]}  Bf5 {[%clk 0:02:54]} 4. Bd3 {[%clk 0:02:40]}  Bxd3 {[%clk 0:02:51]} 5. Qxd3 {[%clk 0:02:41]}  e6 {[%clk 0:02:51]} 6. Ne2 {[%clk 0:02:41]}  c5 {[%clk 0:02:50]} 7. c3 {[%clk 0:02:34]}  Nc6 {[%clk 0:02:49]} 8. O-O {[%clk 0:02:30]}  cxd4 {[%clk 0:02:47]} 9. cxd4 {[%clk 0:02:30]}  Nge7 {[%clk 0:02:47]} 10. Nd2 {[%clk 0:02:14]}  Nc8 {[%clk 0:02:28]} 11. Nf3 {[%clk 0:02:06]}  Be7 {[%clk 0:02:28]} 12. Nf4 {[%clk 0:01:41]}  O-O {[%clk 0:02:25]} 13. Nh5 {[%clk 0:01:39]}  Nb6 {[%clk 0:02:17]} 14. b3 {[%clk 0:01:17]}  Rc8 {[%clk 0:02:11]} 15. a3 {[%clk 0:01:09]}  a5 {[%clk 0:01:57]} 16. Be3 {[%clk 0:00:56]}  a4 {[%clk 0:01:56]} 17. Rfb1 {[%clk 0:00:53]}  Rc7 {[%clk 0:01:47]} 18. b4 {[%clk 0:00:29]}  Nc4 {[%clk 0:01:47]} 19. Bc1 {[%clk 0:00:28]}  b5 {[%clk 0:01:35]} 20. g3 {[%clk 0:00:26]}  h6 {[%clk 0:01:31]} 21. h4 {[%clk 0:00:24]}  Nb8 {[%clk 0:01:23]} 22. Kg2 {[%clk 0:00:23]}  Nd7 {[%clk 0:01:23]} 23. Ne1 {[%clk 0:00:20]}  Ndb6 {[%clk 0:01:19]} 24. Qf3 {[%clk 0:00:20]}  Kh7 {[%clk 0:01:17]} 25. Nd3 {[%clk 0:00:17]}  Nd7 {[%clk 0:01:05]} 26. Nc5 {[%clk 0:00:13]}  Nxc5 {[%clk 0:01:04]} 27. bxc5 {[%clk 0:00:13]}  Rb7 {[%clk 0:01:00]} 28. Qg4 {[%clk 0:00:12]}  Rg8 {[%clk 0:00:59]} 29. Qf4 {[%clk 0:00:11]}  Bf8 {[%clk 0:00:52]} 30. Qf3 {[%clk 0:00:09]}  Qd7 {[%clk 0:00:42]} 31. Qd3+ {[%clk 0:00:08]}  Kh8 {[%clk 0:00:41]} 32. Bxh6 {[%clk 0:00:07]}  Qe7 {[%clk 0:00:22]} 33. Bg5 {[%clk 0:00:07]}  Qd7 {[%clk 0:00:20]} 34. Qf3 {[%clk 0:00:07]}  Na5 {[%clk 0:00:16]} 35. Nf6 {[%clk 0:00:07]}  gxf6 {[%clk 0:00:13]} 36. Qh5+ {[%clk 0:00:07]} 1-0


[Site "https://www.chess.com"]